bitfinex/quotes_ETHUSD_20260208
["timestamp","ask_amount","ask_price","bid_price","bid_amount"]
[1770569066584,1.1921793,2097.0,2095.7,1.19291497]
[1770569066786,1.1921793,2097.0,2095.8,0.0450045]
[1770569067197,1.1921793,2097.0,2095.7,0.92770214]
[1770569067402,1.1921793,2097.0,2095.6,1.24535721]
[1770569067888,1.1921793,2097.0,2095.7,1.19291647]
[1770569068266,1.1921793,2097.0,2095.6,1.20034397]
[1770569071794,2.13822271,2097.5,2096.2,0.0450045]
[1770569072119,4.76803509,2097.4,2096.2,0.0450045]
[1770569073463,4.76803509,2097.4,2096.5,0.0450045]
[1770569073980,4.76803509,2097.4,2096.5,1.23745042]
[1770569074684,1.19178147,2097.7,2096.5,1.23745042]
[1770569074864,3.331,2097.5,2096.5,1.23745042]
[1770569075377,3.331,2097.6,2096.5,2.16515256]
[1770569076182,1.19189511,2097.5,2096.5,2.16515256]
[1770569076781,1.19189511,2097.5,2096.5,0.97270664]
[1770569077107,1.19189511,2097.5,2096.5,0.0450045]
[1770569077279,1.19189511,2097.5,2096.2,1.19262896]
[1770569077484,0.94627077,2097.0,2095.8,0.001]
[1770569077781,4.27827077,2096.9,2095.8,0.001]
[1770569077983,0.94627077,2096.8,2095.8,0.001]
[1770569078185,1.19234988,2096.7,2095.8,0.001]
[1770569080788,0.94627077,2096.6,2095.8,0.001]
[1770569081162,0.94627077,2096.6,2095.5,0.001]
[1770569082674,1.19246362,2096.5,2095.5,0.001]
[1770569085103,3.333,2096.4,2095.5,0.001]
[1770569085805,3.333,2096.4,2095.7,0.001]
[1770569086302,1.19246362,2096.5,2095.7,0.001]
[1770569086483,4.76867273,2097.1,2095.8,0.0450045]
[1770569086677,4.76867273,2097.1,2095.8,1.03227882]
[1770569086678,3.333,2097.0,2095.8,1.03227882]
[1770569087127,1.19223615,2096.9,2095.8,2.22509636]
[1770569087799,1.19223615,2096.9,2095.9,0.98727432]
[1770569088000,1.19399398,2097.4,2096.4,0.0450045]
[1770569088401,1.19395937,2097.4,2096.7,0.0450045]
[1770569088809,0.002,2097.4,2096.7,0.0450045]
[1770569089179,0.002,2097.4,2096.8,1.19229301]
[1770569089902,0.002,2097.4,2096.8,2.17956733]
[1770569090286,0.002,2097.4,2097.0,0.0450045]
[1770569090599,0.002,2097.4,2097.0,1.03227882]
[1770569091006,1.19162174,2098.0,2097.0,1.03227882]
[1770569091183,1.19144069,2098.3,2097.1,1.19212245]
[1770569096218,0.93889248,2098.2,2096.7,0.98727432]
[1770569096521,1.19155426,2098.1,2096.7,2.1796171]
[1770569096701,0.93889248,2098.0,2096.3,4.77029904]
[1770569096904,0.93889248,2098.0,2096.5,1.19243755]
[1770569097102,0.93889248,2098.0,2096.7,1.1923481]
[1770569097305,0.93889248,2098.0,2096.6,0.98727432]
[1770569097605,0.93889248,2098.0,2096.6,2.17966561]
[1770569097801,0.93889248,2098.0,2096.7,2.17961998]
[1770569098010,1.19155426,2098.1,2096.8,1.03227882]
[1770569098211,3.332,2098.0,2096.8,1.03227882]
[1770569098509,1.19155426,2098.1,2096.8,1.03227882]
[1770569098703,4.76621705,2098.2,2097.2,0.001]
[1770569098909,0.002,2098.1,2097.2,0.001]
[1770569102627,0.002,2098.1,2097.2,1.19306561]
[1770569103134,0.002,2098.1,2097.2,2.18033993]
[1770569103622,0.002,2098.1,2097.2,0.001]
[1770569106403,0.94089248,2098.1,2097.2,0.001]
[1770569106802,4.27189248,2098.1,2097.2,0.001]
[1770569107033,1.19161105,2098.0,2097.2,0.001]
[1770569109652,4.76844423,2098.1,2097.2,0.001]
[1770569110139,0.93889248,2098.0,2097.2,0.001]
[1770569111209,0.93889248,2098.0,2097.0,0.001]
[1770569111729,1.19166785,2097.9,2097.0,0.001]
[1770569111899,1.19166785,2097.9,2097.4,0.001]
[1770569112104,1.19166785,2097.9,2097.0,0.001]
[1770569112304,2.13056033,2097.9,2097.0,0.001]
[1770569112624,2.13256033,2097.9,2097.0,0.001]
[1770569113026,2.13256033,2097.9,2097.1,0.001]
[1770569113208,2.13256033,2097.9,2097.0,0.001]
[1770569113803,1.19366785,2097.9,2097.0,0.98827432]
[1770569114009,0.002,2098.1,2097.4,1.03227882]
[1770569114331,1.19355641,2098.1,2097.4,0.98727432]
[1770569114527,1.19355641,2098.1,2097.1,0.98727432]
[1770569114720,0.002,2098.1,2097.5,1.01719865]
[1770569114930,1.19355774,2098.1,2097.5,1.01719865]
[1770569115133,0.002,2098.1,2097.5,1.01719865]
[1770569115826,0.002,2098.1,2097.5,2.20905676]
[1770569116403,0.002,2098.1,2097.5,1.01719865]
[1770569116705,0.002,2098.1,2097.5,2.20909326]
[1770569117315,0.002,2098.1,2097.6,0.9356407]
[1770569119138,0.002,2098.1,2097.2,0.0450045]
[1770569119317,0.002,2098.1,2097.4,1.19194704]
[1770569119512,0.002,2098.4,2097.6,1.19182472]
[1770569119713,0.002,2098.4,2097.7,0.9806452]
[1770569120123,0.002,2098.4,2097.7,2.1274111]
[1770569120738,0.002,2098.4,2097.8,0.9356407]
[1770569121047,0.2811,2098.5,2097.8,0.9806452]
[1770569122042,0.2811,2098.5,2097.9,1.19166785]
[1770569122219,0.002,2098.6,2098.1,0.0450045]
[1770569122421,0.002,2098.6,2098.1,0.9806452]
[1770569122621,1.19307051,2099.0,2098.1,0.9806452]
[1770569123214,0.002,2099.0,2098.1,0.9806452]
[1770569123415,1.19305526,2099.0,2098.1,0.9806452]
[1770569123717,0.002,2099.0,2098.1,0.9806452]
[1770569123921,1.19306488,2099.0,2098.1,0.9806452]
[1770569124112,0.002,2099.0,2098.1,0.9356407]
[1770569124319,1.00181234,2099.0,2097.5,0.9806452]
[1770569124543,1.00181234,2099.0,2097.7,1.19175406]
[1770569124728,1.00181234,2099.0,2097.8,1.19171846]
[1770569125158,1.00181234,2099.0,2097.8,2.12735916]
[1770569125842,1.00181234,2099.0,2097.4,8.09878861]
[1770569125843,1.00181234,2099.0,2097.4,4.2666407]
[1770569126045,0.99981234,2098.8,2097.4,3.331]
[1770569126246,0.99981234,2098.6,2097.1,2.12772901]
[1770569126545,0.99981234,2098.6,2097.2,1.19206269]
[1770569126856,0.99981234,2098.6,2097.8,0.001]
[1770569127158,0.99981234,2098.6,2097.2,1.19203046]
[1770569127318,0.99981234,2098.6,2097.3,1.1920067]
[1770569127519,0.99981234,2098.6,2097.2,1.19202477]
[1770569128154,0.99981234,2098.6,2097.0,0.001]
[1770569128462,0.99981234,2098.4,2097.0,0.001]
[1770569131759,1.19144069,2098.3,2097.0,0.9366407]
[1770569131969,1.19144069,2098.3,2097.2,0.9806452]
[1770569132465,1.19144069,2098.3,2097.5,0.9806452]
[1770569134159,5.7642271,2098.9,2097.7,0.9356407]
[1770569134160,4.76684668,2098.8,2097.7,0.9356407]
[1770569136275,0.99981234,2098.6,2097.0,2.12879136]
[1770569136574,0.99981234,2098.6,2097.1,1.19208894]
[1770569137444,0.99981234,2098.6,2097.2,1.19203395]
[1770569137645,0.99981234,2098.6,2097.3,1.19200189]
[1770569138142,1.19132713,2098.5,2097.3,5.70353448]
[1770569138360,1.19132713,2098.5,2097.9,0.001]
[1770569138871,0.99981234,2098.4,2097.9,0.001]
[1770569139244,0.99981234,2098.4,2096.5,4.52243834]
[1770569139245,0.99981234,2098.0,2096.5,4.52243834]
[1770569139445,0.99981234,2098.0,2096.6,1.1923998]
[1770569139846,0.99981234,2098.0,2096.5,4.52241958]
[1770569140158,2.19148019,2097.9,2096.5,4.52241958]
[1770569140359,2.19148019,2097.9,2096.5,4.52246144]
[1770569140565,2.19148019,2097.9,2096.5,3.33]
[1770569140769,2.19148019,2097.9,2096.5,4.52246241]
[1770569141847,0.99981234,2097.8,2096.1,3.56229757]
[1770569142050,0.99981234,2097.8,2096.1,3.81933931]
[1770569142280,0.99981234,2097.6,2096.1,1.19268244]
[1770569142461,1.19178147,2097.7,2096.1,1.19268244]
[1770569142462,4.33081234,2097.5,2096.1,1.19268244]
[1770569142864,0.99981234,2097.4,2096.1,1.19268244]
[1770569143069,0.99981234,2097.4,2096.0,1.19273289]
[1770569143385,0.99981234,2097.4,2095.9,1.19277489]
[1770569143587,0.99981234,2097.4,2095.8,0.9356407]
[1770569143588,0.99981234,2097.2,2095.5,0.003]
[1770569143890,0.99981234,2097.0,2095.5,0.003]
[1770569144300,0.99981234,2096.8,2095.5,0.003]
[1770569144463,3.331,2096.7,2095.5,0.003]
[1770569144800,0.99981234,2096.6,2095.5,0.003]
[1770569145877,1.03332128,2096.5,2095.5,0.003]
[1770569146080,1.03332128,2096.5,2094.8,3.3760045]
[1770569146081,0.98831678,2096.1,2094.4,0.91257528]
[1770569146275,0.98831678,2095.9,2094.3,4.81973526]
[1770569146472,4.31931678,2095.9,2094.5,2.10617757]
[1770569146775,0.98831678,2095.5,2094.0,1.33506176]
[1770569146980,0.98831678,2095.1,2094.0,0.141177]
[1770569147160,3.332,2095.2,2094.1,1.19381075]
[1770569147363,1.03332128,2095.1,2094.0,0.141177]
[1770569147558,0.98831678,2095.1,2094.0,0.141177]
[1770569147870,1.19274809,2096.0,2094.5,0.91257528]
[1770569148188,2.18106487,2096.0,2094.5,0.91257528]
[1770569148483,0.0450045,2095.8,2094.5,2.10616951]
[1770569148662,0.98831678,2095.9,2094.4,1.19365298]
[1770569148867,1.03332128,2095.8,2094.4,1.19362282]
[1770569149065,0.98831678,2095.8,2094.0,0.141177]
[1770569149284,0.98831678,2095.6,2094.0,0.141177]
[1770569149496,1.03332128,2095.4,2094.0,0.141177]
[1770569150160,1.19314656,2095.3,2094.0,0.141177]
[1770569150355,1.19314656,2095.3,2094.0,1.33505609]
[1770569150659,1.19314656,2095.3,2094.1,0.91257528]
[1770569150855,2.22646784,2095.3,2094.3,0.001]
[1770569151065,2.18146334,2095.3,2094.3,0.001]
[1770569151264,2.22646784,2095.3,2094.3,0.001]
[1770569151984,0.98831678,2095.2,2094.3,0.001]
[1770569152172,1.19331742,2095.0,2094.3,0.001]
[1770569153708,0.98831678,2094.9,2094.3,0.001]
[1770569153875,0.98831678,2094.9,2093.1,5.68995134]
[1770569153876,0.0450045,2094.9,2093.4,0.91257528]
[1770569154218,0.1024,2095.6,2093.7,0.91257528]
[1770569154493,0.0450045,2095.8,2094.1,0.91257528]
[1770569154661,0.3226811,2095.7,2094.1,0.91257528]
[1770569154864,0.3226811,2095.7,2094.3,0.91257528]
[1770569155060,0.3226811,2095.7,2094.7,0.91257528]
[1770569155277,1.19250211,2096.5,2095.3,0.91257528]
[1770569155659,1.51594134,2096.6,2095.3,0.91257528]
[1770569156473,1.51594134,2096.6,2095.3,2.10570934]
[1770569156704,0.5,2096.4,2095.2,1.19317978]
[1770569156862,1.48831678,2096.4,2094.5,4.57454243]
[1770569157192,0.98831678,2096.2,2094.7,1.1934786]
[1770569157367,0.98831678,2096.2,2094.6,2.10608326]
[1770569157564,0.0450045,2096.0,2094.6,2.10610113]
[1770569157762,3.334,2096.0,2094.6,0.95757978]
[1770569157986,3.334,2096.0,2094.9,0.91257528]
[1770569158196,3.334,2096.0,2094.8,1.19342908]
[1770569158359,1.2378095,2095.9,2094.6,2.10612058]
[1770569158799,0.98831678,2096.8,2094.7,0.91257528]
[1770569159005,1.51596454,2096.6,2095.1,0.91257528]
[1770569160493,0.32353381,2096.6,2095.9,0.91257528]
[1770569160681,2.21409713,2097.2,2095.9,0.91257528]
[1770569161266,3.20241391,2097.2,2095.5,0.91257528]
[1770569161467,0.0450045,2097.1,2095.5,0.91257528]
[1770569161664,1.03332128,2096.8,2095.1,2.10582358]
[1770569161888,0.98831678,2096.8,2095.1,2.10582358]
[1770569162385,1.19257739,2096.3,2095.0,1.19331742]
[1770569162592,1.19257739,2096.3,2095.1,0.91257528]
[1770569162777,1.19257739,2096.3,2095.0,1.19331742]
[1770569163190,0.0450045,2096.2,2094.9,4.52733505]
[1770569163399,0.0450045,2096.2,2094.6,0.91257528]
[1770569163572,5.51489417,2096.3,2094.9,1.19336739]
[1770569163773,0.002,2095.7,2094.9,1.19336739]
[1770569164293,0.002,2095.7,2095.3,1.19314656]
[1770569165601,0.002,2095.7,2094.7,0.91257528]
[1770569165810,0.002,2095.7,2094.9,1.19334284]
[1770569165991,0.002,2095.7,2095.0,1.19331664]
[1770569166195,0.002,2095.7,2094.8,1.1933799]
[1770569166401,0.002,2095.7,2094.6,1.1935453]
[1770569167684,0.002,2095.7,2094.7,0.91257528]
[1770569168381,0.002,2095.7,2094.8,2.10600663]
[1770569168581,0.002,2095.7,2094.9,0.95757978]
[1770569169590,1.19252051,2096.4,2095.1,0.91257528]
[1770569169789,1.19252051,2096.4,2095.2,0.0450045]
[1770569169994,1.19252051,2096.4,2094.9,0.0450045]
[1770569170523,0.98831678,2096.4,2095.0,1.19331742]
[1770569172607,1.19257739,2096.3,2094.9,4.77344791]
[1770569172791,1.19257739,2096.3,2094.8,4.77326968]
[1770569174107,0.98831678,2096.2,2094.8,4.77326968]
[1770569174298,0.0450045,2095.7,2094.6,1.19354489]
[1770569174483,5.76021981,2095.7,2094.5,0.001]
[1770569174683,0.98831678,2095.6,2094.5,0.001]
[1770569175620,1.03642299,2095.4,2094.5,0.001]
[1770569175803,0.99141849,2095.4,2094.5,0.001]
[1770569175984,0.0450045,2095.3,2094.5,0.001]
[1770569176187,1.03642299,2095.3,2094.5,0.001]
[1770569176412,5.76332152,2095.7,2094.5,0.001]
[1770569176621,0.0450045,2095.6,2094.5,0.001]
[1770569176821,0.99141849,2095.4,2094.5,0.001]
[1770569176986,0.0450045,2095.3,2094.5,0.001]
[1770569177184,1.03642299,2095.1,2094.3,0.001]
[1770569177382,0.0450045,2095.0,2094.3,0.001]
[1770569177614,1.03642299,2095.0,2094.3,0.001]
[1770569178121,1.03642299,2095.0,2093.6,1.19711057]
[1770569178122,1.03642299,2095.0,2093.6,0.003]
[1770569178290,0.0450045,2094.8,2093.6,0.003]
[1770569178489,0.99141849,2095.0,2093.6,0.003]
[1770569178490,1.19337438,2094.9,2093.6,0.003]
[1770569178689,1.19337438,2094.9,2094.8,0.001]
[1770569178920,2.18479287,2094.9,2093.6,0.003]
[1770569179122,2.18479287,2094.9,2093.9,0.001]
[1770569180028,0.0450045,2094.8,2093.9,0.001]
[1770569180189,2.18479287,2094.9,2093.9,0.001]
[1770569180390,1.19337438,2094.9,2093.9,0.001]
[1770569180593,5.80992053,2095.1,2093.9,0.001]
[1770569181000,0.99141849,2095.0,2093.9,0.001]
[1770569181430,1.03642299,2095.0,2093.9,0.001]
[1770569182609,0.0450045,2094.7,2093.9,0.001]
[1770569182812,3.335,2094.7,2093.9,0.001]
[1770569183342,0.99141849,2095.6,2093.9,1.00032394]
[1770569183644,3.335,2095.5,2093.9,1.00032394]
[1770569184533,3.335,2095.5,2094.1,0.99932394]
[1770569184707,1.19291883,2095.7,2094.1,0.99932394]
[1770569186730,1.19291883,2095.7,2094.3,0.99932394]
[1770569188510,5.09592767,2095.8,2094.7,0.99932394]
[1770569188511,0.32425234,2095.8,2094.7,0.99932394]
[1770569188715,1.5171292,2095.8,2094.7,0.99932394]
[1770569189130,0.32425234,2095.8,2094.7,0.99932394]
[1770569189533,0.32425234,2095.8,2094.7,1.04432844]
[1770569190338,1.51713552,2095.8,2094.7,0.99932394]
[1770569190535,0.32425234,2095.8,2094.7,0.99932394]
[1770569190735,1.51712412,2095.8,2094.8,1.19343135]
[1770569190927,0.32425234,2095.8,2094.8,1.19343135]
[1770569191244,1.51712078,2095.8,2094.8,1.19343135]
[1770569191424,0.32425234,2095.8,2094.9,0.99932394]
[1770569191831,0.002,2095.6,2094.9,0.99932394]
[1770569192020,0.002,2095.6,2094.8,1.19343135]
[1770569192938,0.002,2095.6,2094.6,1.1935453]
[1770569194122,0.002,2095.6,2094.5,5.52788881]
[1770569194353,0.99341849,2095.6,2094.5,3.335]
[1770569194515,0.99341849,2095.6,2094.1,0.001]
[1770569194516,1.03642299,2095.5,2094.1,0.001]
[1770569194719,0.99141849,2095.5,2094.4,1.19362143]
[1770569195040,1.23809412,2095.4,2094.1,0.001]
[1770569195245,0.99141849,2095.3,2094.1,0.001]
[1770569195750,0.99141849,2095.0,2094.1,0.001]
[1770569196125,0.0450045,2095.1,2093.6,0.003]
[1770569196126,1.03642299,2094.8,2093.6,0.003]
[1770569196321,4.37142299,2094.8,2093.6,0.003]
[1770569196617,0.99141849,2094.7,2093.6,0.003]
[1770569196839,1.1935453,2094.6,2093.6,0.003]
[1770569197944,4.52844337,2094.8,2093.6,1.00232394]
[1770569198140,4.52844337,2094.8,2093.6,0.003]
[1770569198345,5.51986186,2094.8,2093.6,0.003]
[1770569198542,0.99141849,2094.7,2093.6,0.003]
[1770569198731,1.03642299,2094.6,2093.6,0.003]
[1770569198926,2.18502078,2094.5,2093.6,0.003]
[1770569199458,1.19360229,2094.5,2093.6,0.003]
[1770569200126,0.99141849,2094.4,2093.6,0.003]
[1770569200862,4.52860229,2094.5,2093.6,0.003]
[1770569202559,5.52002078,2094.5,2093.6,0.003]
[1770569202736,4.52960229,2094.5,2093.6,0.003]
[1770569203118,1.19360229,2094.5,2093.6,0.003]
[1770569203560,4.77380814,2094.8,2093.6,0.003]
[1770569203766,4.77380814,2094.8,2093.6,1.00232394]
[1770569203962,1.19343135,2094.8,2093.6,1.00232394]
[1770569204147,1.19326046,2095.1,2093.6,1.00232394]
[1770569204355,2.13467895,2095.1,2093.8,0.001]
[1770569204867,0.002,2094.8,2093.8,0.001]
[1770569206355,0.002,2094.8,2093.8,0.97203161]
[1770569207060,0.002,2094.8,2093.8,1.19495821]
[1770569207279,0.002,2094.8,2093.8,0.001]
[1770569208449,0.98396586,2094.8,2093.8,0.001]
[1770569208647,0.98196586,2094.7,2093.8,0.001]
[1770569209074,1.19371627,2094.3,2093.8,0.001]
[1770569210260,2.13067763,2094.3,2093.6,0.003]
[1770569210952,0.93696136,2094.0,2092.8,1.19457186]
[1770569211152,1.19383028,2094.1,2092.9,0.97103161]
[1770569211974,3.336,2094.4,2092.9,1.01603611]
[1770569212164,0.93696136,2094.3,2092.9,0.97103161]
[1770569212363,0.93696136,2094.3,2092.9,0.96880991]
[1770569212770,4.52966778,2094.4,2092.9,0.96880991]
[1770569212960,4.52966778,2094.4,2093.1,0.97103161]
[1770569214468,1.19366778,2094.4,2093.1,0.97103161]
[1770569214681,4.53066778,2094.4,2093.1,0.97103161]
[1770569215060,4.53066778,2094.4,2093.3,0.97103161]
[1770569215751,0.002,2094.8,2093.3,0.97103161]
[1770569215979,1.19547518,2094.8,2093.3,0.97103161]
[1770569216396,1.19547518,2094.8,2093.4,1.01603611]
[1770569216692,1.19544608,2094.8,2093.4,1.01603611]
[1770569216899,0.002,2094.8,2093.4,1.01603611]
[1770569217179,0.002,2094.8,2094.0,0.97103161]
[1770569218553,0.002,2094.2,2094.0,0.97103161]
[1770569218754,0.002,2094.8,2094.0,0.97103161]
[1770569219176,1.19319523,2095.3,2094.0,0.97103161]
[1770569219177,0.002,2094.4,2094.3,0.97103161]
[1770569219481,1.1949881,2095.6,2094.4,0.97103161]
[1770569219794,0.002,2095.3,2094.4,0.97103161]
[1770569220801,0.002,2095.3,2094.1,5.50086189]
[1770569220983,0.002,2095.3,2094.1,2.16486189]
[1770569221301,0.002,2095.3,2094.2,0.97103161]
[1770569224364,0.002,2095.3,2094.4,0.97103161]
[1770569226396,0.002,2095.3,2094.5,2.1646339]
[1770569227189,0.002,2095.3,2094.4,1.19365763]
[1770569227370,0.04977845,2095.3,2094.4,1.19365018]
[1770569227574,0.002,2095.3,2094.4,1.19365018]
[1770569228394,0.002,2095.3,2094.4,0.97103161]
[1770569230507,0.002,2095.3,2094.6,0.97103161]
[1770569231493,0.002,2095.3,2094.6,0.97203161]
[1770569231878,0.002,2095.1,2094.6,0.97203161]
[1770569232082,1.56e-06,2095.1,2094.6,0.97203161]
[1770569232598,1.56e-06,2095.1,2094.7,1.19348832]
[1770569234199,1.56e-06,2095.1,2094.7,2.16451993]
[1770569238804,1.56e-06,2095.1,2094.8,1.01189076]
[1770569239184,1e-08,2095.8,2094.9,0.96688626]
[1770569239383,1e-08,2095.8,2095.0,2.16020368]
[1770569239783,1e-08,2095.8,2095.1,4.30188626]
[1770569240579,1e-08,2095.8,2095.2,0.96688626]
[1770569240784,1e-08,2095.8,2095.1,3.335]
[1770569241290,1e-08,2095.8,2095.3,1.19314656]
[1770569243106,1e-08,2095.8,2095.3,2.16003282]
[1770569243609,1e-08,2095.8,2095.4,0.96688626]
[1770569244502,1e-08,2095.8,2095.3,1.19314656]
[1770569245209,1e-08,2095.8,2095.3,2.16103282]
[1770569245413,0.002,2095.6,2095.3,2.16103282]
[1770569245605,4.8e-07,2095.6,2095.3,2.16103282]
[1770569247607,4.8e-07,2095.6,2095.4,0.96688626]
[1770569247808,0.002,2096.4,2095.6,0.96688626]
[1770569248308,0.99099722,2096.4,2095.3,1.19414656]
[1770569248715,0.04777845,2096.3,2095.3,1.19414656]
[1770569248911,0.99099722,2096.4,2095.3,1.19414656]
[1770569249893,0.98899722,2096.2,2095.3,0.001]
[1770569250408,1.19455992,2096.4,2095.3,0.96788626]
[1770569250786,0.98899722,2096.3,2095.3,0.001]
[1770569252011,1.19263429,2096.2,2095.3,0.001]
[1770569252188,1.19263429,2096.2,2095.3,0.96788626]
[1770569252511,2.18163151,2096.2,2095.3,0.001]
[1770569252688,0.98899722,2096.1,2095.3,0.001]
[1770569253107,0.98899722,2095.9,2095.3,0.001]
[1770569254019,1.19286191,2095.8,2095.3,0.001]
[1770569254224,0.98899722,2095.7,2095.3,0.001]
[1770569256194,0.98899722,2096.1,2095.3,0.001]
[1770569258516,0.002,2095.6,2095.3,0.001]
[1770569260616,0.002,2095.8,2095.4,0.96688626]
[1770569261130,0.002,2095.8,2095.3,4.52814656]
[1770569261733,0.002,2095.8,2095.3,3.335]
[1770569263114,0.002,2095.8,2095.3,0.001]
[1770569266841,0.002,2095.8,2095.3,0.99842782]
[1770569268731,0.002,2095.8,2095.4,1.19308962]
[1770569270524,0.002,2095.8,2095.5,0.001]
[1770569270917,0.002,2095.6,2095.5,0.001]
[1770569271533,0.002,2095.8,2095.5,0.001]
[1770569274802,0.99054904,2095.8,2095.5,0.001]
[1770569276231,0.99054904,2095.8,2094.6,0.001]
[1770569276446,0.002,2095.8,2095.0,1.19331634]
[1770569276609,0.002,2095.8,2095.3,0.99742782]
[1770569276929,0.99054904,2096.7,2095.3,0.99742782]
[1770569276930,1.19238867,2096.7,2095.7,1.04243232]
[1770569277102,1.19238867,2096.7,2095.7,0.99742782]
[1770569278106,0.90990246,2096.6,2095.4,5.52447848]
[1770569278307,1.19238867,2096.7,2095.5,0.99742782]
[1770569278926,1.19238867,2096.7,2095.7,0.99742782]
[1770569280549,0.1474045,2097.6,2095.7,0.99742782]
[1770569280550,1.19393152,2097.5,2096.3,1.04243232]
[1770569280740,1.19393152,2097.5,2096.5,0.99742782]
[1770569280916,1.19200877,2097.3,2096.4,5.52393597]
[1770569281099,1.19200877,2097.3,2096.4,4.33142782]
[1770569281303,0.04777845,2097.2,2096.1,0.99742782]
[1770569281507,2.05413278,2097.3,2096.1,2.19008194]
[1770569281706,2.05413278,2097.3,2096.1,0.99742782]
[1770569282128,0.04777845,2097.2,2096.1,0.99742782]
[1770569282337,2.05413278,2097.3,2096.1,2.19011297]
[1770569283038,2.05413278,2097.3,2096.1,0.99742782]
[1770569283424,0.002,2096.5,2096.1,2.19009623]
[1770569283822,0.002,2096.5,2096.1,0.99742782]
[1770569284024,0.002,2096.5,2096.0,3.334]
[1770569284325,0.002,2096.5,2096.1,0.99742782]
[1770569285532,0.002,2096.5,2096.1,2.19011725]
[1770569285730,0.002,2096.5,2096.1,2.19011457]
[1770569285924,0.002,2096.5,2096.2,0.99742782]
[1770569286818,0.002,2096.5,2095.7,2.19130687]
[1770569287040,0.002,2096.5,2095.7,0.99842782]
[1770569287234,0.86412401,2096.5,2095.5,0.001]
[1770569287416,0.002,2096.5,2095.3,2.19052968]
[1770569287615,0.002,2096.5,2095.4,2.19049603]
[1770569287924,0.002,2096.5,2095.5,0.99742782]
[1770569288126,0.91190246,2096.5,2095.2,0.99742782]
[1770569288335,0.002,2096.5,2095.4,0.99742782]
[1770569288534,0.002,2096.5,2095.4,2.19051018]
[1770569288940,0.002,2096.5,2095.4,1.19308236]
[1770569289315,0.002,2096.5,2095.4,0.99742782]
[1770569291555,0.002,2096.5,2095.6,0.99742782]
[1770569291725,0.002,2096.5,2095.8,0.99742782]
[1770569293627,0.002,2096.5,2096.0,0.99742782]
[1770569294869,0.002,2096.5,2095.7,4.3088024]
[1770569295150,0.002,2096.5,2095.8,2.16865649]
[1770569295351,0.002,2096.5,2095.9,0.9758024]
[1770569295848,0.002,2096.5,2096.0,1.19274809]
[1770569296064,0.002,2096.3,2096.0,1.19274809]
[1770569296632,0.002,2096.3,2096.1,0.9758024]
[1770569297430,0.002,2096.5,2096.1,0.9758024]
[1770569298451,0.002,2096.5,2096.1,2.16848941]
[1770569298765,0.002,2096.5,2095.7,3.334]
[1770569299329,0.86112401,2096.3,2095.5,0.001]
[1770569300126,0.86112401,2095.8,2094.6,0.001]
[1770569300326,1.19291883,2095.7,2094.7,0.001]
[1770569300866,0.90612851,2095.6,2094.6,0.001]
[1770569301076,3.333,2095.6,2094.6,0.001]
[1770569301292,1.19291883,2095.7,2094.6,0.001]
[1770569302292,0.86112401,2095.6,2094.6,0.001]
[1770569302470,1.19303268,2095.5,2094.6,0.9768024]
[1770569302979,4.77110206,2096.0,2094.6,0.9768024]
[1770569303275,4.525729,2096.1,2094.8,0.9758024]
[1770569303475,1.19252051,2096.4,2095.1,0.9758024]
[1770569304268,0.04777845,2096.3,2095.2,0.001]
[1770569304469,1.19263429,2096.2,2095.2,0.001]
[1770569304841,1.24041274,2096.2,2095.2,0.001]
[1770569305043,1.19263429,2096.2,2095.2,0.001]
[1770569305893,0.86112401,2096.1,2095.2,0.001]
[1770569306245,1.19263429,2096.2,2095.2,0.9768024]
[1770569306470,4.77041801,2096.4,2095.2,0.9768024]
[1770569306671,4.77041801,2096.4,2095.2,2.17000467]
[1770569306873,4.77041801,2096.4,2095.2,0.9768024]
[1770569307074,5.67654652,2096.4,2095.2,0.001]
[1770569307248,5.63154202,2096.4,2095.2,1.1942003]
[1770569307569,0.95390696,2096.3,2095.2,0.001]
[1770569307772,0.90612851,2096.3,2095.2,0.001]
[1770569308265,0.86112401,2096.1,2094.9,3.333]
[1770569308472,4.19512401,2096.0,2095.0,0.001]
[1770569308674,1.192805,2095.9,2094.7,0.001]
[1770569308843,1.192805,2095.9,2094.8,0.001]
[1770569309243,1.192805,2095.9,2094.9,0.9768024]
[1770569310752,1.192805,2095.9,2094.9,0.001]
[1770569310753,0.04777845,2095.8,2094.9,0.001]
[1770569310951,1.192805,2095.9,2094.9,0.001]
[1770569311151,0.90890246,2095.8,2094.9,0.001]
[1770569311879,0.86112401,2095.8,2094.8,0.001]
[1770569312174,0.86112401,2095.8,2094.9,0.001]
[1770569312757,1.19291883,2095.7,2094.9,0.001]
[1770569313074,1.19291883,2095.7,2094.9,0.9768024]
[1770569313248,1.19291883,2095.7,2094.9,0.001]
[1770569313974,0.04777845,2095.6,2094.9,0.001]
[1770569314138,2.05404284,2095.7,2094.5,0.001]
[1770569314344,0.90890246,2095.6,2094.5,0.001]
[1770569314600,0.90612851,2095.5,2093.8,2.16979948]
[1770569314880,0.90612851,2095.2,2093.8,0.9758024]
[1770569315179,0.90612851,2095.2,2093.8,2.16980163]
[1770569315180,3.334,2095.1,2093.8,2.16980163]
[1770569315685,3.334,2095.1,2093.9,0.9758024]
[1770569316889,1.19331742,2095.0,2094.1,0.9758024]
[1770569317411,4.77213075,2095.8,2094.1,0.9758024]
[1770569317602,0.04777845,2095.7,2094.1,0.9758024]
[1770569318668,4.81713525,2095.8,2094.1,0.9758024]
[1770569319097,4.81713525,2095.8,2094.3,0.9758024]
[1770569319301,0.86112401,2095.7,2094.3,0.9758024]
[1770569319479,0.90612851,2095.5,2094.0,2.16964659]
[1770569319675,0.86112401,2095.4,2094.0,0.9758024]
[1770569319874,0.0450045,2095.5,2093.7,0.9768024]
[1770569319875,0.90612851,2095.2,2093.7,0.9768024]
[1770569320078,4.19612401,2095.2,2093.7,2.17085789]
[1770569320277,4.19612401,2095.2,2093.7,2.17085772]
[1770569320278,0.90612851,2095.1,2093.7,2.17085772]
[1770569320479,0.90612851,2095.1,2093.7,2.1708595]
[1770569320875,0.0450045,2094.8,2093.7,0.001]
[1770569321086,1.23849282,2094.7,2093.7,0.001]
[1770569321280,1.19348832,2094.7,2093.7,0.001]